Cogmind - Beta 15 @@@ ROGUE MODE // 2025.05.14 @ 16:28:51 // Halloween2019/Abominations Player: Minty Result: Destroyed by Lesser Abomination with Heavy Assault Rifle Performance ------------- Evolutions (1) 500 Regions Visited (2) 400 Robots Destroyed (8) 40 Value Destroyed (379) 379 Prototype IDs (0) 0 Alien Tech Used (0) 0 Bonus (0) 0 TOTAL SCORE: 1319 Bonus ------- None Cogmind --------- Core Integrity 0/400 Matter 270/300 Energy 248/250 System Corruption 0% Temperature Cool (6) Movement Rolling (90) Location -9/Materials Parts ------- > --- POWER (1) -------- Ion Engine > --- PROPULSION (2) --- Armored Wheel Armored Wheel > --- UTILITY (3) ------ Medium Storage Unit > --- WEAPON (3) ------- Light Assault Rifle > --- INVENTORY (10) --- Light Treads Aluminum Leg Wheel Compact Wheel Compact Wheel Small Storage Unit Peak State ------------ > --- POWER ------------ Ion Engine > --- PROPULSION ------- Armored Wheel Armored Wheel > --- UTILITY ---------- Medium Storage Unit > --- WEAPON ----------- Beam Cannon Light Assault Rifle > --- INVENTORY -------- Light Treads Aluminum Leg Wheel Compact Wheel Compact Wheel Small Storage Unit [Rating: 8] Favorites ----------- Power Light Ion Engine Engine Light Ion Engine Propulsion Wheel Treads Light Treads Leg Aluminum Leg Wheel Wheel Utility Medium Storage Unit Device Structural Scanner Storage Medium Storage Unit Weapon Light Assault Rifle Energy Cannon Beam Cannon Ballistic Gun Light Assault Rifle Build | -11 -10 -9 ------- Run | Yrd Mat Mat Slots Evolved 2 | . . 2 Power . | . . . Propulsion . | . . . Utility 1 | . . 1 Weapon 1 | . . 1 Parts Attached 15 | . 8 7 Power 3 | . 2 1 Engine 3 | . 2 1 Core . | . . . Reactor . | . . . Propulsion 7 | . 3 4 Treads 2 | . . 2 Leg . | . . . Wheel 5 | . 3 2 Hover . | . . . Flight . | . . . Utility 2 | . 2 . Device 1 | . 1 . Storage 1 | . 1 . Processor . | . . . Hackware . | . . . Protection . | . . . Artifact . | . . . Weapon 3 | . 1 2 Energy Gun . | . . . Energy Cannon 1 | . 1 . Ballistic Gun 2 | . . 2 Ballistic Cannon . | . . . Launcher . | . . . Special Weapon . | . . . Impact Weapon . | . . . Slashing Weapon . | . . . Piercing Weapon . | . . . Special Melee Weapon . | . . . Unidentified Prototypes . | . . . Parts Lost 10 | . 2 8 Power 2 | . 1 1 Propulsion 4 | . 1 3 Utility 1 | . . 1 Weapon 3 | . . 3 Highest Loss Streak 5 | . 1 5 To Critical Strikes . | . . . Average Backups 7 | 6 7 7 Power . | 1 1 . Propulsion 4 | 4 4 5 Utility . | . . 1 Weapon 1 | 1 1 . Tool/Special . | . . . Unused Backups 5 | . 1 4 Power 1 | . 1 . Propulsion 3 | . . 3 Utility 1 | . . 1 Weapon . | . . . Tool/Special . | . . . Average Slot Usage (%) 78 | . 86 65 Engine 12 | . 14 8 Treads 2 | . . 6 Leg 6 | . 10 . Wheel 15 | . 17 12 Device 2 | . 1 4 Storage 12 | . 14 11 Energy Cannon 4 | . 2 8 Ballistic Gun 21 | . 25 13 Peak Build Rating 8 | 6 7 8 Average Rating 6 | 6 6 6 On Entrance 6 | 6 6 7 Naked Turns . | . . . Heaviest Build 20 | 10 20 20 Greatest Support 40 | 20 26 40 Greatest Overweight (x) 1 | . 1 . Average Overweight (x) . | . . . Largest Inventory Capacity 10 | 8 10 10 Average Capacity 9 | 8 9 10 Most Carried 10 | 6 10 9 Average Carried 7 | 6 7 6 Final Capacity 10 | 8 10 10 Final Carried 9 | 6 9 6 Class Distribution -------------------- 91% | Mutant 8% | Gunner Dominant Class ---------------- Mutant | -10/Materials Mutant | -9/Materials Resources | -11 -10 -9 ----------- Run | Yrd Mat Mat Matter Collected 364 | 200 114 50 Remotely . | . . . Salvage Created 330 | . 164 166 Parts 18 | . 10 8 Haulers Intercepted . | . . . Recyclers Shooed . | . . . Parts Field Recycled . | . . . Retrieved Matter . | . . . Parts Self-Destructed . | . . . Prevented . | . . . Kills | -11 -10 -9 ------- Run | Yrd Mat Mat Combat Hostiles Destroyed 7 | . 4 3 Guns 4 | . 3 1 Cannons 2 | . . 2 Classes Destroyed 4 | . 3 1 Operator 1 | . 1 . Grunt 2 | . 2 . Sentry 1 | . . 1 Abomination 4 | . 2 2 Best Kill Streak 2 | . 2 2 Combat Bots Only 2 | . 2 2 Max Kills in Single Turn 1 | . 1 1 Gunslinging . | . . . Exploded . | . . . Melee . | . . . Uniques/NPCs Destroyed . | . . . Combat | -11 -10 -9 -------- Run | Yrd Mat Mat Hostile Shots Fired 107 | . 21 86 Missed 28 | . 7 21 Hits 79 | . 14 65 Melee 28 | . 5 23 Projectile 51 | . 9 42 Critical Strikes 1 | . 1 . Damage Taken 1606 | . 338 1268 Core 453 | . 39 414 Absorbed by Shields . | . . . Core Remaining (%) 92 | 100 84 . Volleys Fired 50 | . 21 29 Largest 3 | . 2 3 Hottest 100 | . 80 100 Shots Fired 96 | . 42 54 Gun 67 | . 39 28 Cannon 29 | . 3 26 Launcher . | . . . Special . | . . . Kinetic 67 | . 39 28 Thermal 29 | . 3 26 Explosive . | . . . Electromagnetic . | . . . Robot Hit Streak 9 | . 6 9 Robot Miss Streak 4 | . 4 4 Penetration Max . | . . . Secondary Targets . | . . . Shots Hit Robots 60 | . 25 35 Core Hits 20 | . 11 9 Critical Kills . | . . . Critical Parts Destroyed . | . . . Critical Strikes . | . . . Melee Attacks . | . . . Impact . | . . . Slashing . | . . . Piercing . | . . . Sneak Attacks . | . . . Combat Hostiles . | . . . Follow-up Attacks . | . . . Damage Inflicted 696 | . 204 492 Guns 335 | . 186 149 Cannons 361 | . 18 343 Explosions . | . . . Melee . | . . . Ramming . | . . . Kinetic 335 | . 186 149 Thermal 361 | . 18 343 Explosive . | . . . Electromagnetic . | . . . Impact . | . . . Slashing . | . . . Piercing . | . . . Highest Corruption 6 | . 6 . Average Corruption 5 | . 5 . Corruption Purged . | . . . Corruption Blocked . | . . . Effects 1 | . 1 . Data Loss (minor) 1 | . 1 . Overload Shots . | . . . Overflow Damage 3 | . . 3 Projectiles 3 | . . 3 Explosions . | . . . Melee . | . . . Knockbacks . | . . . Impact . | . . . Kinetic . | . . . Secondary . | . . . Self-Inflicted Damage . | . . . Shots . | . . . Rammed . | . . . Targets Rammed . | . . . Kicked . | . . . Crushed . | . . . Highest Temperature 317 | . 86 317 Average Temperature 166 | . 32 193 Received Heat Transfer 312 | . 60 252 Effects 1 | . . 1 Interference 1 | . . 1 Siege Activations . | . . . Martial Activations . | . . . Shielding Activations . | . . . Robots Disrupted . | . . . Combat Hostiles . | . . . Robots Corrupted . | . . . Combat Hostiles . | . . . Parts Fried 2 | . 2 . Impact Corruptions . | . . . Robots Melted . | . . . Combat Hostiles . | . . . Parts Melted . | . . . Heat Transferred 209 | . 37 172 Parts Sabotaged . | . . . Parts Stolen . | . . . Parts Stripped . | . . . Power Chain Reactions . | . . . Alert | -11 -10 -9 ------- Run | Yrd Mat Mat Maximum Alert Level . | . . . Low Security (%) 100 | 100 100 100 Level 1 . | . . . Level 2 . | . . . Level 3 . | . . . Level 4 . | . . . Level 5 . | . . . High Security . | . . . Max Security . | . . . Peak Influence 40 | . 40 30 Initial 8 | . . 8 Average 6 | . 8 4 Influence Increases 130 | . 85 45 Destroy 0b10 Robot/C 60 | . 40 20 Destroy 0b10 Robot/NC 5 | . 5 . Destroy Leader 20 | . 10 10 Disable Machine 15 | . . 15 Lose Combat Pursuer 30 | . 30 . Influence Decreases 130 | . 65 65 Entered New Map 12 | . . 12 Time Decay 83 | . 55 28 Lost Part 35 | . 10 25 Squads Dispatched 8 | . 5 3 Investigation 5 | . 3 2 Extermination . | . . . Reinforcement 2 | . 1 1 Assault 1 | . 1 . Garrison . | . . . Intercept . | . . . Searches Triggered . | . . . Construction Impeded . | . . . Haulers Reinforced . | . . . Active Scanning Responses . | . . . Cargo Convoy Interrupts . | . . . Stealth | -11 -10 -9 --------- Run | Yrd Mat Mat Distress Signals 4 | . 2 2 Communications Jammed . | . . . Distress Signals . | . . . Times Spotted 17 | . 7 10 Peak Tracking Total 5 | . 5 4 Tactical Retreats 1 | . 1 . Traps | -11 -10 -9 ------- Run | Yrd Mat Mat Traps Triggered 1 | . 1 . Indirectly . | . . . Trap Hack Attempts . | . . . Triggered . | . . . Disarmed . | . . . Reprogrammed . | . . . Reused . | . . . Traps Extracted . | . . . Installed . | . . . Triggered . | . . . Machines | -11 -10 -9 ---------- Run | Yrd Mat Mat Machines Disabled 1 | . . 1 Max in Single Turn 1 | . . 1 Machines Repaired . | . . . Machines Dismantled . | . . . Machines Sabotaged . | . . . Overloaded Fab Kills . | . . . Hacking | -11 -10 -9 --------- Run | Yrd Mat Mat Machines Accessed 3 | . 2 1 Terminals 2 | . 1 1 Fabricators . | . . . Repair Stations . | . . . Recycling Units 1 | . 1 . Scanalyzers . | . . . Garrison Access . | . . . Total Hacks 6 | . 4 2 Successful 2 | . 1 1 Failed 4 | . 3 1 Catastrophic . | . . . Database Lockouts . | . . . Manual 2 | . . 2 Terminals 4 | . 2 2 Fabricators . | . . . Repair Stations . | . . . Recycling Units 2 | . 2 . Scanalyzers . | . . . Garrison Access . | . . . Terminal Hacks 1 | . . 1 Robot Analysis 1 | . . 1 Fabricator Hacks . | . . . Repair Station Hacks . | . . . Recycling Unit Hacks 1 | . 1 . Report Inventory 1 | . 1 . Scanalyzer . | . . . Garrison Access Hacks . | . . . Unauthorized Hacks . | . . . Terminals . | . . . Fabricators . | . . . Repair Stations . | . . . Recycling Units . | . . . Scanalyzers . | . . . Garrison Access . | . . . Data Cores Recovered . | . . . Used . | . . . Hacking Detections 3 | . 2 1 Full Trace Events . | . . . Feedback Events . | . . . Feedback Blocked . | . . . Robot Schematics Acquired . | . . . Robots Built . | . . . Authchips . | . . . Time . | . . . Total Robot Build Rating . | . . . Part Schematics Acquired . | . . . Parts Built . | . . . Authchips . | . . . Time . | . . . Total Part Build Rating . | . . . Parts Repaired . | . . . Time . | . . . Parts Recycled . | . . . Recycled Matter . | . . . Retrieved Matter . | . . . Retrieved Components . | . . . Parts Scanalyzed . | . . . Part Schematics Acquired . | . . . Parts Damaged . | . . . Bothacking | -11 -10 -9 ------------ Run | Yrd Mat Mat Used RIF Installer . | . . . Robots Hacked . | . . . Non-combat . | . . . Combat . | . . . Robot Hacks Applied . | . . . Relay Couplers Released . | . . . Fabnet Peak Effective % . | . . . Robots Rewired . | . . . Allies Hacked . | . . . Hacks Repelled . | . . . Allies | -11 -10 -9 -------- Run | Yrd Mat Mat Total Allies . | . . . Largest Group . | . . . Highest-Rated Group . | . . . Highest-Rated Ally . | . . . Total Orders . | . . . Ally Attacks . | . . . Total Damage . | . . . Kills . | . . . Allies Corrupted . | . . . Allies Melted . | . . . Intel | -11 -10 -9 ------- Run | Yrd Mat Mat Active Infowar (turns) 87 | . 31 56 Structural 87 | . 31 56 Robot Analysis Total 1 | . . 1 Derelict Logs Recovered . | . . . Drone Launches . | . . . Drone Recoveries . | . . . Exploration | -11 -10 -9 ------------- Run | Yrd Mat Mat Turns Passed 413 | 6 252 155 Spaces Moved 275 | 6 201 68 Core . | . . . Treads 8 | . . 8 Legs 50 | 6 44 . Wheels 217 | . 157 60 Hover . | . . . Flight . | . . . Fastest Speed 80 | 120 80 80 Average Speed 91 | 120 89 93 Slowest Speed 190 | 120 190 160 Overloaded Moves . | . . . Propulsion Burnouts . | . . . Robots Hopped . | . . . Potential Cave-ins . | . . . Cave-ins Triggered . | . . . Exploration Rate (%) 17 | 2 37 13 Regions Visited 2 Branch Regions . Pre-discovered Areas . | . . . Known Exits Taken . | . . . Unknown Exits Taken 2 | 1 1 . Scrap Searched . | . . . Spaces Dug . | . . . Terrain Destroyed . | . . . Melee . | . . . Projectile . | . . . AOE . | . . . Terrain Rammed . | . . . Walls Destroyed . | . . . Machines Disabled . | . . . Actions | -11 -10 -9 --------- Run | Yrd Mat Mat Total 346 | 5 236 105 Wait 1 | . 1 . Move 273 | 5 200 68 Hop . | . . . Pick Up 4 | . 3 1 Fast Attach 5 | . 3 2 Attach 6 | . 2 4 Detach 2 | . 2 . Swap 4 | . 3 1 Drop 1 | . 1 . Fire 50 | . 21 29 Melee . | . . . Ram . | . . . Kick . | . . . Crush . | . . . Escape Stasis . | . . . Rewire . | . . . Trap . | . . . Miscellaneous . | . . . Route ------- -11/Scrapyard -10/Materials -9/Materials History --------- Turn | Location | Event 1 | -11/Scrapyard | Discovered new exit (range 2) 7 | -11/Scrapyard | Entered Materials 232 | -10/Materials | Discovered new exit (range 8) 259 | -10/Materials | Entered another Materials area 259 | -9/Materials | Evolved 2 slots: Utility x1, Weapon x1 306 | -9/Materials | Build established: Mutant 318 | -9/Materials | Core integrity fell below 50% 346 | -9/Materials | Lost 5 parts (1p2n1u1w) 374 | -9/Materials | Core integrity fell below 20% 408 | -9/Materials | Lost 3 parts (1n2w) 414 | -9/Materials | Destroyed by Lesser Abomination with Heavy Assault Rifle Last Messages --------------- 00370_ Unstable Anomaly suddenly flashes brightly. 00370_ Violent ripples tear at the fabric of space around R-06 Scavenger. 00372_ Lesser Abomination absorbs Lgt. Armor Plating. 00372_ Acquired Arm. Wheel. 00373_ Unstable Anomaly suddenly flashes brightly. 00373_ Violent ripples tear at the fabric of space around R-06 Scavenger. 00375_ Lesser Abomination absorbs Lgt. Treads. 00377_ Beam Cannon destroyed. 00378_ Lesser Abomination absorbs Arm. Wheel. 00384_ Lesser Abomination feeds off Hungry Anomaly, taking Wheel, Weight Redist. System, Weight Redist. System. 00386_ Lesser Abomination feeds off Hungry Anomaly, taking Lgt. Ion Engine. 00395_ Lesser Abomination sheds Ice Anomaly. 00396_ Frozen by Ice Anomaly. 00397_ Ice Anomaly freezes G-34 Mercenary. 00397_ Frozen by Ice Anomaly. 00398_ Ice Anomaly freezes G-34 Mercenary. 00408_ Acquired 12 matter. 00412_ Hungry Anomaly eats Hrd. Light Armor Plating. Map ----- +----------------------------------------------------+ | ?????????????????????????????????????????????????? | | ?????????????????????????????????????????????????? | | ?????????????????????????????????????????????????? | | ?????????????????????????????????????????????????? | | ?????????????????????????????????????????????????? | | ?????????????????????????????????????????????????? | | ?????????????????????????????????????????????????? | | ?????????????????????????????????????????????????? | | ?????????????????????????????????????????????????? | | ?????????????????????????????????????????????????? | | ???????????????????????????? ????????????????????? | | ??????????????????????????"""""??????????????????? | | ????????????????????????""" ??????????????????? | | ?????????????????????? " ??????????????????? | | ????????????????????? " ??????????????????? | | ????????????????????? " #??????????????????? | | ????????????????????? " % #??????????????????? | | ???????????????????????" #??????????????????? | | ???????????????????????? #??????????????????? | | ????????????????????????? %#??????????????????? | | ??????????????????????????# #??????????????????? | | ?????????????????????????## ##?????#######?????? | | ?????????????????????????# ####### #?????? | | ?????????????????????????# % g #?????? | | ?????????????????######### % % #?????? | | ??????????; % @ A #?????? | | ?????????????????######### ####### ##### | | ?????????????????????????#######?????## ######## | | ?????????????????????????????????????# | | ?????????????????????????????????????+ | | ?????????????????????????????????????# """ | | ?????????????????????????????????????### #### """ | | ???????????????????????????????????????#+#??# """ | | ????????????????????????????????????????????# "" | | ??????????????????????????????????????????? # """ | | ??????????????????????????????????????????? # | | ?????????????????????????????????????????? + | | ?????????????????????????????????????????"" # | | ??????????????????????????????????????????" # | | ??????????????????????????????????????????? # | | ??????????????????????????????????????????? # % | | ???????????????????????????????????????????#" | | ??????????????????????????????????????????? | | ?????????????????????????????????????????? | | ????????????????????????????????????????? | | ???????????????????????????????????????? ## | | ??????????????????????????????????????? [ # | | ????????????????????????????????????????% #? | | ????????????????????????????????????????? #? | | ?????????????????????????????????????????? ?? | +----------------------------------------------------+ Best States ------------- Heat Dissipation 28 Energy Generation 10 Energy Capacity 250 Matter Stores 300 Matter Capacity 300 Sight Range 16 Terrain Scan Density 10 Evasion (%) 55 Recoil Reduction 2 Item Schematics ----------------- None Robot Schematics ------------------ None Fabricated ------------ Nothing Repaired ---------- Nothing Alien Tech Used ----------------- None Achievements -------------- None Challenges ------------ None Game ------ Seed PhasingLobotomyPod Manual? 0 Play Time 00:08:52 Cumulative 1039.6 hours Start 2025.05.14 @ 16:17:28 End 2025.05.14 @ 16:28:51 Sessions 1 Manual Loads 0 Difficulty Rogue Special Mode Halloween2019/Abominations Game No. 1284 Rogue 1001 Adventurer 124 Explorer 159 Win Type - Total 45 Types 31/0/8/4/1/0/0/1/0/0 Lore% 91 Gallery% 85 Achievement% 80 Wizard Run 0 Options --------- Layout 0 ASCII 0 Keyboard 1 Movement Numpad Keybinds 0 Fullscreen 2 Font 18/X11 Map View 76x50 Zoom Use 0% Tactical HUD 1 Map Filters NONE Filters NONE Steam 1 RUN: 840b1bdc-f3b9-4306-81bc-dc812b8cffe5